lending/lending_fUSD_20240111
["ID","MTS","AMOUNT","RATE_DAILY","PERIOD"]
[311209544,1704983435328,-157.980158,0.0003701,2]
[311209545,1704983435338,-329.514044,0.0003701,2]
[311209546,1704983435348,-985.7,0.00037075,2]
[311209547,1704983435358,-163.15,0.00037076,2]
[311209548,1704983435368,-1500.0,0.000371,23]
[311209549,1704983435379,-150.0,0.000371,2]
[311209550,1704983435389,-167.0,0.00037138,2]
[311209551,1704983435399,-227.5707428,0.00037181,2]
[311209552,1704983435409,-159.44,0.00037195,2]
[311209553,1704983435419,-302.48,0.00037227,2]
[311209554,1704983435432,-1502.56943109,0.00037347,8]
[311209555,1704983435443,-176.63161643,0.000374,2]
[311209556,1704983435453,-150.0,0.000374,2]
[311209557,1704983435463,-4329.54874292,0.00037463,10]
[311209558,1704983435474,-329.514044,0.00037472,2]
[311209559,1704983435496,-1000.0,0.0003749,60]
[311209560,1704983435506,-1913.286752,0.0003749,30]
[311209561,1704983435516,-203.0,0.00037533,2]
[311209562,1704983435527,-227.5707428,0.00037558,2]
[311209563,1704983435537,-5000.0,0.000376,25]
[311209564,1704983435547,-1424.40657494,0.00037752,2]
[311209565,1704983435557,-1000.0,0.00037769,2]
[311209566,1704983435567,-153.3,0.000378,3]
[311209567,1704983435578,-153.3,0.000378,3]
[311209568,1704983435589,-153.3,0.000378,3]
[311209569,1704983435600,-153.3,0.000378,3]
[311209570,1704983435610,-153.3,0.000378,3]
[311209571,1704983435621,-153.3,0.000378,3]
[311209572,1704983435631,-153.3,0.000378,3]
[311209573,1704983435642,-153.3,0.000378,3]
[311209574,1704983435652,-153.3,0.000378,3]
[311209575,1704983435663,-153.3,0.000378,3]
[311209576,1704983435673,-153.3,0.000378,3]
[311209577,1704983435684,-153.3,0.000378,3]
[311209578,1704983435694,-153.3,0.000378,3]
[311209579,1704983435704,-521.92,0.00037826,2]
[311209580,1704983435714,-1235.66767554,0.00037835,2]
[311209581,1704983435725,-866.78274801,0.00037835,2]
[311209582,1704983435736,-5353.58310579,0.00037835,2]
[311209583,1704983435750,-1664.67723713,0.00037835,2]
[311209584,1704983435761,-150000.0,0.00037835,3]
[311209585,1704983435771,-4329.54874292,0.00037878,10]
[311209586,1704983435782,-150000.0,0.00037878,3]
[311209587,1704983435792,-150000.0,0.00037878,3]
[311209588,1704983435802,-150000.0,0.00037878,3]
[311209589,1704983435814,-21647.7437146,0.0003788,10]
[311209590,1704983435824,-632.74,0.00037888,2]
[311209591,1704983435834,-47625.0361721,0.0003789,10]
[311209592,1704983435844,-150.43,0.0003789,2]
[311209593,1704983435854,-95518.2329618,0.000379,2]
[311209594,1704983435864,-329.514044,0.00037935,2]
[311209595,1704983435874,-157.980158,0.00037935,2]
[311209596,1704983435885,-227.5707428,0.00037936,2]
[311209597,1704983435895,-230.01310602,0.00037948,2]
[311209598,1704983435906,-588.622,0.00038,30]
[311209599,1704983435916,-184.0,0.00038,2]
[311209600,1704983435926,-153.84,0.00038119,2]
[311209601,1704983435936,-154.17,0.00038119,2]
[311209602,1704983435946,-200.0,0.00038149,5]
[311209603,1704983435956,-151.65502897,0.00038182,7]
[311209604,1704983435967,-150.46862216,0.00038252,2]
[311209605,1704983435977,-227.5707428,0.00038313,2]
[311209606,1704983435987,-4329.54874292,0.00038323,10]
[311209607,1704983435997,-4329.54874292,0.00038333,10]
[311209608,1704983436008,-47625.0361721,0.00038336,10]
[311209609,1704983436018,-4329.54874292,0.00038342,10]
[311209610,1704983436028,-2000.0,0.00038343,8]
[311209611,1704983436038,-5322.35826004,0.00038343,8]
[311209612,1704983436048,-500.0,0.00038343,8]
[311209613,1704983436059,-159.18083966,0.00038343,5]
[311209614,1704983436070,-226.09759864,0.00038343,7]
[311209615,1704983436081,-8659.09748584,0.00038346,10]
[311209616,1704983436091,-985.7,0.00038352,2]
[311209617,1704983436105,-200.0,0.00038356,2]
[311209618,1704983436115,-21927.89,0.00038356,2]
[311209619,1704983436126,-4329.54874292,0.00038378,10]
[311209620,1704983436137,-95518.2329618,0.0003838,2]
[311209621,1704983436147,-4329.54874292,0.0003839,10]
[311209622,1704983436158,-329.514044,0.00038398,2]
[311209623,1704983436168,-7886.0,0.000384,2]
[311209624,1704983436180,-167.0,0.00038554,2]
[311209625,1704983436191,-4329.54874292,0.0003859,10]
[311209626,1704983436202,-4999.999,0.000386,25]
[311209627,1704983436213,-154.16609783,0.000386,2]
[311209628,1704983436223,-182.33,0.00038651,60]
[311209629,1704983436239,-1502.56943109,0.00038723,9]
[311209630,1704983436250,-203.0,0.00038781,5]
[311209631,1704983436260,-3449.37267862,0.000388,4]
[311209632,1704983436270,-521.92,0.00038804,2]
[311209633,1704983436280,-329.514044,0.0003886,2]
[311209634,1704983436291,-157.980158,0.0003886,2]
[311209635,1704983436301,-151.0,0.00038876,7]
[311209636,1704983436314,-4329.54874292,0.0003888,10]
[311209637,1704983436324,-178.41828017,0.000389,2]
[311209638,1704983436334,-153.3,0.000389,3]
[311209639,1704983436344,-153.3,0.000389,3]
[311209640,1704983436354,-153.3,0.000389,3]
[311209641,1704983436364,-153.3,0.000389,3]
[311209642,1704983436374,-153.3,0.000389,3]
[311209643,1704983436383,-153.3,0.000389,3]
[311209644,1704983436394,-153.3,0.000389,3]
[311209645,1704983436404,-153.3,0.000389,3]
[311209646,1704983436413,-153.3,0.000389,3]
[311209647,1704983436423,-153.3,0.000389,3]
[311209648,1704983436433,-153.3,0.000389,3]
[311209649,1704983436443,-153.3,0.000389,3]
[311209650,1704983436453,-153.3,0.000389,3]
[311209651,1704983436463,-8659.09748584,0.00038938,10]
[311209652,1704983436473,-14670.42886,0.00038948,2]
[311209653,1704983436483,-360.75273009,0.00038958,2]
[311209654,1704983436514,-281.73212903,0.0003898,2]
[311209655,1704983436525,-12988.6462288,0.0003898,10]
[311209656,1704983436535,-25977.2924575,0.0003899,10]
[311209657,1704983436545,-12727.9769636,0.00039,2]
[311209658,1704983436556,-1427.43973993,0.00039,2]
[311209659,1704983436568,-350.0,0.00039,2]
[311209660,1704983436577,-151.02717831,0.00039,2]
[311209661,1704983436587,-237.26198864,0.00039,2]
[311209662,1704983436597,-4910.2503,0.00039,2]
[311209663,1704983436608,-150.0,0.00039,2]
[311209664,1704983436618,-3000.0,0.00039,2]
[311209665,1704983436628,-3000.0,0.00039,2]
[311209666,1704983436639,-3000.0,0.00039,2]
[311209667,1704983436649,-3000.0,0.00039,2]
[311209668,1704983436660,-3000.0,0.00039,2]
[311209669,1704983436670,-3000.0,0.00039,2]
[311209670,1704983436680,-3000.0,0.00039,2]
[311209671,1704983436690,-3000.0,0.00039,2]
[311209672,1704983436700,-3000.0,0.00039,2]
[311209673,1704983436710,-5332.5822099,0.00039,2]
[311209674,1704983436720,-155.0,0.00039,2]
[311209675,1704983436730,-776.10323469,0.00039,2]
[311209676,1704983436740,-256.42,0.00039,30]
[311209677,1704983436751,-939.46,0.00039041,2]
[311209678,1704983436761,-4329.54874292,0.00039058,10]
[311209679,1704983436771,-150.46862198,0.00039062,3]
[311209680,1704983436780,-206.40356979,0.00039078,12]
[311209681,1704983436791,-5238.33447943,0.00039078,12]
[311209682,1704983436804,-5000.0,0.00039078,2]
[311209683,1704983436817,-1006.2094,0.00039078,3]
[311209684,1704983436826,-4223.0,0.0003909,3]
[311209685,1704983436836,-504.5,0.00039137,30]
[311209686,1704983436846,-95518.2329618,0.00039158,4]
[311209687,1704983436856,-224.59,0.00039168,10]
[311209688,1704983436866,-392.09,0.00039168,10]
[311209689,1704983436875,-326.74,0.00039168,10]
[311209690,1704983436886,-382072.931847,0.00039168,4]
[311209691,1704983436895,-150.43,0.00039168,2]
[311209692,1704983436905,-223.48820135,0.00039168,2]
[311209693,1704983436915,-666.0,0.00039177,2]
[311209694,1704983436924,-150.0,0.00039177,2]
[311209695,1704983436934,-500.0,0.00039178,4]
[311209696,1704983436943,-500.0,0.00039178,4]
[311209697,1704983436953,-472.53147634,0.00039178,4]
[311209698,1704983436962,-405.79665552,0.00039178,4]
[311209699,1704983436971,-234.78843816,0.00039178,4]
[311209700,1704983436981,-500.0,0.00039178,4]
[311209701,1704983436990,-516.71303985,0.00039178,4]
[311209702,1704983436999,-178.9350967,0.00039178,4]
[311209703,1704983437007,-500.0,0.00039178,4]
[311209704,1704983437017,-538.90628138,0.00039178,4]
[311209705,1704983437027,-260.37778839,0.00039178,4]
[311209706,1704983437036,-500.0,0.00039178,4]
[311209707,1704983437045,-500.0,0.00039178,4]
[311209708,1704983437054,-500.0,0.00039178,4]
[311209709,1704983437066,-500.0,0.00039178,4]
[311209710,1704983437075,-500.0,0.00039178,4]
[311209711,1704983437085,-500.0,0.00039178,4]
[311209712,1704983437094,-500.0,0.00039178,4]
[311209713,1704983437103,-500.0,0.00039178,4]
[311209714,1704983437113,-500.0,0.00039178,4]
[311209715,1704983437123,-500.0,0.00039178,4]
[311209716,1704983437132,-500.0,0.00039178,4]
[311209717,1704983437142,-500.0,0.00039178,4]
[311209718,1704983437151,-609.27361144,0.00039178,4]
[311209719,1704983437161,-500.0,0.00039178,4]
[311209720,1704983437171,-500.0,0.00039178,4]
[311209721,1704983437180,-500.0,0.00039178,4]
[311209722,1704983437189,-500.0,0.00039178,4]
[311209723,1704983437199,-500.0,0.00039178,4]
[311209724,1704983437208,-500.0,0.00039178,4]
[311209725,1704983437218,-500.0,0.00039178,4]
[311209726,1704983437227,-500.0,0.00039178,4]
[311209727,1704983437238,-500.0,0.00039178,4]
[311209728,1704983437248,-500.0,0.00039178,4]
[311209729,1704983437258,-500.0,0.00039178,4]
[311209730,1704983437267,-500.0,0.00039178,4]
[311209731,1704983437276,-500.0,0.00039178,4]
[311209732,1704983437286,-500.0,0.00039178,4]
[311209733,1704983437295,-500.0,0.00039178,4]
[311209734,1704983437304,-500.0,0.00039178,4]
[311209735,1704983437316,-503.64746835,0.00039178,4]
[311209736,1704983437325,-500.0,0.00039178,4]
[311209737,1704983437334,-500.0,0.00039178,4]
[311209738,1704983437344,-500.0,0.00039178,4]
[311209739,1704983437353,-500.0,0.00039178,4]
[311209740,1704983437362,-513.37333948,0.00039178,4]
[311209741,1704983437372,-500.0,0.00039178,4]
[311209742,1704983437382,-544.64784113,0.00039178,4]
[311209743,1704983437391,-500.0,0.00039178,4]
[311209744,1704983437401,-500.0,0.00039178,4]
[311209745,1704983437609,-500.0,0.00039178,4]
[311209746,1704983437619,-500.0,0.00039178,4]
[311209747,1704983437629,-500.0,0.00039178,4]
[311209748,1704983437638,-500.0,0.00039178,4]
[311209749,1704983437648,-500.0,0.00039178,4]
[311209750,1704983437657,-500.0,0.00039178,4]
[311209751,1704983437667,-500.0,0.00039178,4]
[311209752,1704983437676,-505.59495732,0.00039178,4]
[311209753,1704983437685,-538.97,0.00039178,4]
[311209754,1704983437695,-500.0,0.00039178,4]
[311209755,1704983437704,-500.0,0.00039178,4]
[311209756,1704983437714,-500.0,0.00039178,4]
[311209757,1704983437724,-500.0,0.00039178,4]
[311209758,1704983437733,-500.0,0.00039178,4]
[311209759,1704983437746,-500.0,0.00039178,4]
[311209760,1704983437755,-500.0,0.00039178,4]
[311209761,1704983437765,-500.0,0.00039178,4]
[311209762,1704983437775,-500.0,0.00039178,4]
[311209763,1704983437784,-500.0,0.00039178,4]
[311209764,1704983437794,-500.0,0.00039178,4]
[311209765,1704983437804,-500.0,0.00039178,4]
[311209766,1704983437815,-500.0,0.00039178,2]
[311209767,1704983437824,-500.0,0.00039178,4]
[311209768,1704983437834,-500.0,0.00039178,4]
[311209769,1704983437843,-500.0,0.00039178,4]
[311209770,1704983437853,-500.0,0.00039178,4]
[311209771,1704983437863,-506.04670347,0.00039178,4]
[311209772,1704983437872,-500.0,0.00039178,4]
[311209773,1704983437882,-513.00474363,0.00039178,4]
[311209774,1704983437891,-500.0,0.00039178,4]
[311209775,1704983437901,-500.0,0.00039178,4]
[311209776,1704983437911,-500.0,0.00039178,4]
[311209777,1704983437921,-500.0,0.00039178,4]
[311209778,1704983437930,-500.0,0.00039178,4]
[311209779,1704983437940,-500.0,0.00039178,4]
[311209780,1704983437949,-500.0,0.00039178,4]
[311209781,1704983437958,-500.0,0.00039178,4]
[311209782,1704983437968,-500.0,0.00039178,4]
[311209783,1704983437978,-500.0,0.00039178,4]
[311209784,1704983437987,-500.0,0.00039178,4]
[311209785,1704983437996,-500.0,0.00039178,4]
[311209786,1704983438006,-500.0,0.00039178,4]
[311209787,1704983438015,-500.0,0.00039178,4]
[311209788,1704983438025,-500.0,0.00039178,4]
[311209789,1704983438034,-500.0,0.00039178,4]
[311209790,1704983438043,-500.0,0.00039178,4]
[311209791,1704983438053,-500.0,0.00039178,4]
[311209793,1704983438066,-500.0,0.00039178,4]
[311209795,1704983438075,-500.0,0.00039178,4]
[311209796,1704983438085,-500.0,0.00039178,4]
[311209797,1704983438095,-500.0,0.00039178,4]
[311209798,1704983438105,-500.0,0.00039178,4]
[311209799,1704983438115,-500.0,0.00039178,4]
[311209800,1704983438125,-500.0,0.00039178,4]
[311209801,1704983438135,-500.0,0.00039178,4]
[311209802,1704983438144,-500.0,0.00039178,4]
[311209803,1704983438153,-500.0,0.00039178,4]
[311209804,1704983438163,-500.0,0.00039178,4]
[311209805,1704983438173,-500.0,0.00039178,4]
[311209807,1704983438182,-500.0,0.00039178,4]
[311209809,1704983438192,-500.0,0.00039178,4]
[311209811,1704983438201,-269.4429059,0.00039178,4]
[311209813,1704983438211,-270.42283736,0.00039178,4]
[311209814,1704983438221,-500.0,0.00039178,4]
[311209816,1704983438230,-500.0,0.00039178,4]
[311209817,1704983438239,-500.0,0.00039178,4]
[311209818,1704983438249,-500.0,0.00039178,4]
[311209819,1704983438258,-500.0,0.00039178,4]
[311209820,1704983438268,-500.0,0.00039178,4]
[311209821,1704983438277,-500.0,0.00039178,4]
[311209822,1704983438287,-500.0,0.00039178,5]
[311209823,1704983438297,-500.0,0.00039178,4]
[311209824,1704983438310,-500.0,0.00039178,4]
[311209825,1704983438319,-500.0,0.00039178,4]
[311209826,1704983438328,-642.34049056,0.00039178,4]
[311209827,1704983438338,-500.0,0.00039178,4]
[311209828,1704983438347,-500.0,0.00039178,4]
[311209829,1704983438357,-500.0,0.00039178,4]
[311209830,1704983438366,-500.0,0.00039178,4]
[311209831,1704983438376,-500.0,0.00039178,4]
[311209832,1704983438386,-500.0,0.00039178,4]
[311209833,1704983438395,-500.0,0.00039178,4]
[311209834,1704983438405,-281.62,0.00039178,4]
[311209835,1704983438414,-500.0,0.00039178,4]
[311209836,1704983438424,-500.0,0.00039178,4]
[311209837,1704983438433,-500.0,0.00039178,4]
[311209838,1704983438442,-500.0,0.00039178,4]
[311209839,1704983438452,-500.0,0.00039178,4]
[311209840,1704983438461,-500.0,0.00039178,4]
[311209841,1704983438471,-500.0,0.00039178,4]
[311209842,1704983438480,-500.0,0.00039178,4]
[311209843,1704983438490,-500.0,0.00039178,4]
[311209844,1704983438499,-500.0,0.00039178,4]
[311209845,1704983438508,-500.0,0.00039178,4]
[311209846,1704983438518,-500.0,0.00039178,4]
[311209847,1704983438527,-500.0,0.00039178,4]
[311209848,1704983438537,-500.0,0.00039178,4]
[311209849,1704983438546,-500.0,0.00039178,4]
[311209850,1704983438556,-500.0,0.00039178,4]
[311209851,1704983438568,-500.0,0.00039178,4]
[311209852,1704983438578,-500.0,0.00039178,4]
[311209853,1704983438587,-500.0,0.00039178,4]
[311209854,1704983438597,-500.0,0.00039178,4]
[311209855,1704983438607,-500.0,0.00039178,4]
[311209856,1704983438617,-500.0,0.00039178,4]
[311209857,1704983438626,-500.0,0.00039178,4]
[311209858,1704983438635,-500.0,0.00039178,4]
[311209859,1704983438645,-500.0,0.00039178,4]
[311209860,1704983438654,-500.0,0.00039178,4]
[311209861,1704983438664,-500.0,0.00039178,4]
[311209862,1704983438673,-500.0,0.00039178,4]
[311209863,1704983438683,-500.0,0.00039178,4]
[311209864,1704983438692,-500.0,0.00039178,4]
[311209865,1704983438702,-511.59724337,0.00039178,4]
[311209866,1704983438711,-500.0,0.00039178,4]
[311209867,1704983438721,-500.0,0.00039178,4]
[311209868,1704983438730,-500.0,0.00039178,4]
[311209869,1704983438740,-500.0,0.00039178,4]
[311209870,1704983438753,-500.0,0.00039178,4]
[311209871,1704983438762,-500.0,0.00039178,4]
[311209872,1704983438772,-500.0,0.00039178,4]
[311209873,1704983438781,-500.0,0.00039178,4]
[311209874,1704983438790,-500.0,0.00039178,4]
[311209875,1704983438800,-500.0,0.00039178,4]
[311209876,1704983438813,-500.0,0.00039178,4]
[311209877,1704983438822,-500.0,0.00039178,4]
[311209878,1704983438832,-500.0,0.00039178,4]
[311209880,1704983438841,-500.0,0.00039178,4]
[311209882,1704983438850,-500.0,0.00039178,4]
[311209884,1704983438859,-500.0,0.00039178,4]
[311209885,1704983438869,-500.0,0.00039178,4]
[311209886,1704983438878,-500.0,0.00039178,4]
[311209887,1704983438887,-499.53025152,0.00039178,4]
[311209888,1704983438896,-500.0,0.00039178,4]
[311209889,1704983438905,-551.72143975,0.00039178,4]
[311209891,1704983438915,-500.0,0.00039178,4]
[311209892,1704983438924,-500.0,0.00039178,4]
[311209893,1704983438933,-500.0,0.00039178,4]
[311209894,1704983438943,-500.0,0.00039178,4]
[311209895,1704983438952,-500.0,0.00039178,4]
[311209896,1704983438961,-500.0,0.00039178,4]
[311209897,1704983438971,-500.0,0.00039178,4]
[311209898,1704983438980,-500.0,0.00039178,4]
[311209899,1704983438989,-500.0,0.00039178,4]
[311209900,1704983438998,-500.0,0.00039178,4]
[311209901,1704983439007,-500.0,0.00039178,4]
[311209902,1704983439017,-447.1,0.00039178,4]
[311209903,1704983439026,-506.57447305,0.00039178,4]
[311209904,1704983439035,-500.0,0.00039178,4]
[311209905,1704983439044,-500.0,0.00039178,4]
[311209906,1704983439054,-500.0,0.00039178,4]
[311209907,1704983439066,-500.0,0.00039178,4]
[311209908,1704983439075,-500.0,0.00039178,4]
[311209909,1704983439085,-500.0,0.00039178,4]
[311209910,1704983439094,-500.0,0.00039178,4]
[311209911,1704983439104,-500.0,0.00039178,4]
[311209912,1704983439113,-500.0,0.00039178,4]
[311209913,1704983439123,-500.0,0.00039178,4]
[311209914,1704983439132,-1000.0,0.00039178,4]
[311209915,1704983439142,-528.32705227,0.00039178,4]
[311209916,1704983439152,-500.0,0.00039178,4]
[311209917,1704983439161,-500.0,0.00039178,4]
[311209918,1704983439171,-500.0,0.00039178,4]
[311209919,1704983439181,-500.0,0.00039178,4]
[311209920,1704983439190,-500.0,0.00039178,4]
[311209921,1704983439200,-500.0,0.00039178,2]
[311209922,1704983439209,-500.0,0.00039178,4]
[311209923,1704983439219,-500.0,0.00039178,4]
[311209924,1704983439229,-500.0,0.00039178,4]
[311209925,1704983439238,-500.0,0.00039178,4]
[311209926,1704983439247,-500.0,0.00039178,4]
[311209927,1704983439257,-500.0,0.00039178,4]
[311209928,1704983439267,-500.0,0.00039178,4]
[311209929,1704983439276,-500.0,0.00039178,4]
[311209930,1704983439286,-502.30829408,0.00039178,4]
[311209931,1704983439295,-500.0,0.00039178,4]
[311209932,1704983439304,-500.0,0.00039178,4]
[311209933,1704983439316,-398.63521462,0.00039178,4]
[311209934,1704983439325,-471.64903368,0.00039178,4]
[311209935,1704983439334,-500.0,0.00039178,4]
[311209936,1704983439344,-500.0,0.00039178,4]
[311209937,1704983439353,-500.0,0.00039178,4]
[311209938,1704983439363,-500.0,0.00039178,4]
[311209939,1704983439372,-500.0,0.00039178,4]
[311209940,1704983439381,-286.94338145,0.00039178,4]
[311209941,1704983439391,-500.0,0.00039178,4]
[311209942,1704983439400,-500.0,0.00039178,4]
[311209943,1704983439409,-500.0,0.00039178,4]
[311209944,1704983439419,-510.07236681,0.00039178,4]
[311209945,1704983439428,-500.0,0.00039178,4]
[311209946,1704983439438,-614.06,0.00039178,4]
[311209947,1704983439447,-500.0,0.00039178,4]
[311209948,1704983439457,-500.0,0.00039178,4]
[311209949,1704983439466,-648.14,0.00039178,4]
[311209950,1704983439475,-500.0,0.00039178,4]
[311209951,1704983439485,-500.0,0.00039178,4]
[311209952,1704983439494,-500.0,0.00039178,4]
[311209953,1704983439504,-500.0,0.00039178,4]
[311209954,1704983439513,-500.0,0.00039178,4]
[311209955,1704983439522,-500.0,0.00039178,4]
[311209956,1704983439532,-500.0,0.00039178,4]
[311209957,1704983439542,-500.0,0.00039178,4]
[311209958,1704983439553,-509.3514656,0.00039178,4]
[311209959,1704983439566,-500.0,0.00039178,4]
[311209960,1704983439575,-500.0,0.00039178,4]
[311209961,1704983439585,-500.0,0.00039178,4]
[311209962,1704983439595,-554.82448227,0.00039178,4]
[311209963,1704983439605,-500.0,0.00039178,4]
[311209964,1704983439615,-500.0,0.00039178,4]
[311209965,1704983439624,-500.0,0.00039178,4]
[311209966,1704983439634,-500.0,0.00039178,4]
[311209967,1704983439643,-500.0,0.00039178,4]
[311209968,1704983439653,-500.0,0.00039178,4]
[311209969,1704983439662,-500.0,0.00039178,4]
[311209970,1704983439672,-500.0,0.00039178,4]
[311209971,1704983439681,-500.0,0.00039178,4]
[311209972,1704983439691,-500.0,0.00039178,4]
[311209973,1704983439701,-500.0,0.00039178,4]
[311209974,1704983439710,-500.0,0.00039178,4]
[311209975,1704983439720,-500.0,0.00039178,4]
[311209976,1704983439730,-500.0,0.00039178,4]
[311209977,1704983439741,-500.0,0.00039178,4]
[311209978,1704983439756,-500.0,0.00039178,4]
[311209979,1704983439766,-500.0,0.00039178,4]
[311209980,1704983439776,-517.17104944,0.00039178,4]
[311209981,1704983439786,-500.0,0.00039178,4]
[311209982,1704983439796,-500.0,0.00039178,4]
[311209983,1704983439807,-500.0,0.00039178,4]
[311209984,1704983439821,-500.0,0.00039178,4]
[311209985,1704983439831,-500.0,0.00039178,4]
[311209986,1704983439843,-500.0,0.00039178,4]
[311209987,1704983439853,-500.0,0.00039178,4]
[311209988,1704983439864,-500.0,0.00039178,4]
[311209989,1704983439873,-500.0,0.00039178,4]
[311209990,1704983439883,-500.0,0.00039178,4]
[311209991,1704983439893,-505.87178232,0.00039178,4]
[311209992,1704983439902,-500.0,0.00039178,4]
[311209993,1704983439912,-300.01052713,0.00039178,4]
[311209994,1704983439922,-506.29579686,0.00039178,4]
[311209995,1704983439931,-500.0,0.00039178,4]
[311209996,1704983439940,-500.0,0.00039178,4]
[311209997,1704983439951,-500.0,0.00039178,4]
[311209998,1704983440002,-512.33917707,0.00039178,4]
[311209999,1704983440012,-500.0,0.00039178,4]
[311210000,1704983440021,-500.0,0.00039178,4]
[311210001,1704983440031,-500.0,0.00039178,4]
[311210002,1704983440041,-500.0,0.00039178,4]
[311210004,1704983440051,-500.0,0.00039178,4]
[311210006,1704983440066,-500.0,0.00039178,4]
[311210008,1704983440075,-500.0,0.00039178,4]
[311210010,1704983440085,-500.0,0.00039178,4]
[311210012,1704983440095,-500.0,0.00039178,4]
[311210014,1704983440105,-506.85635026,0.00039178,4]
[311210016,1704983440115,-500.0,0.00039178,4]
[311210017,1704983440124,-500.0,0.00039178,4]
[311210018,1704983440135,-500.0,0.00039178,4]
[311210019,1704983440145,-500.0,0.00039178,4]
[311210020,1704983440156,-561.59825577,0.00039178,7]
[311210021,1704983440166,-500.0,0.00039178,4]
[311210022,1704983440176,-500.0,0.00039178,4]
[311210023,1704983440186,-500.0,0.00039178,4]
[311210024,1704983440195,-500.0,0.00039178,4]
[311210025,1704983440205,-500.0,0.00039178,4]
[311210026,1704983440214,-500.0,0.00039178,4]
[311210027,1704983440224,-500.0,0.00039178,4]
[311210028,1704983440234,-500.0,0.00039178,4]
[311210029,1704983440244,-500.0,0.00039178,4]
[311210030,1704983440253,-500.0,0.00039178,4]
[311210031,1704983440262,-500.0,0.00039178,4]
[311210032,1704983440272,-500.0,0.00039178,4]
[311210033,1704983440281,-500.0,0.00039178,4]
[311210034,1704983440291,-500.0,0.00039178,4]
[311210035,1704983440301,-500.0,0.00039178,4]
[311210036,1704983440312,-500.0,0.00039178,4]
[311210037,1704983440321,-500.0,0.00039178,4]
[311210038,1704983440331,-500.0,0.00039178,4]
[311210039,1704983440340,-537.21689544,0.00039178,4]
[311210040,1704983440349,-500.0,0.00039178,4]
[311210041,1704983440359,-500.0,0.00039178,4]
[311210042,1704983440368,-500.0,0.00039178,4]
[311210043,1704983440377,-500.0,0.00039178,4]
[311210044,1704983440387,-500.0,0.00039178,4]
[311210045,1704983440396,-500.0,0.00039178,4]
[311210046,1704983440406,-500.0,0.00039178,4]
[311210047,1704983440415,-518.34693756,0.00039178,4]
[311210048,1704983440424,-504.90102107,0.00039178,4]
[311210049,1704983440433,-500.0,0.00039178,4]
[311210050,1704983440442,-500.0,0.00039178,4]
[311210051,1704983440451,-500.0,0.00039178,4]
[311210052,1704983440461,-503.31866189,0.00039178,4]
[311210053,1704983440470,-500.0,0.00039178,4]
[311210054,1704983440479,-500.0,0.00039178,4]
[311210055,1704983440489,-500.0,0.00039178,4]
[311210056,1704983440498,-500.0,0.00039178,4]
[311210057,1704983440507,-500.0,0.00039178,4]
[311210058,1704983440517,-500.0,0.00039178,4]
[311210059,1704983440527,-500.0,0.00039178,4]
[311210060,1704983440536,-500.0,0.00039178,4]
[311210061,1704983440545,-500.0,0.00039178,4]